Cogmind - Beta 13 @@@ ROGUE MODE // 2024.04.18 @ 22:22:30 Player: RKyeun Result: Self-destructed Performance ------------- Evolutions (1) 500 Regions Visited (2) 400 Robots Destroyed (16) 80 Value Destroyed (379) 379 Prototype IDs (1) 20 Alien Tech Used (0) 0 Bonus (0) 0 TOTAL SCORE: 1379 Bonus ------- None Cogmind --------- Core Integrity 352/400 Matter 70/300 Energy 250/250 System Corruption 0% Temperature Cool (3) Movement Treading (160) Location -9/Materials Parts ------- > --- POWER (1) -------- Ion Engine > --- PROPULSION (2) --- Improved Treads Improved Treads > --- UTILITY (2) ------ Heat Sink > --- WEAPON (4) ------- Assault Rifle Light Assault Rifle Light Assault Rifle Heavy Assault Rifle > --- INVENTORY (5) ---- Improved Ion Engine Light Nuclear Core Improved Treads Peak State ------------ > --- POWER ------------ Cooled Ion Engine > --- PROPULSION ------- Improved Treads Improved Treads > --- UTILITY ---------- Heat Sink Light Armor Plating > --- WEAPON ----------- Assault Rifle Grenade Launcher > --- INVENTORY -------- Ion Engine Light Nuclear Core Assault Rifle Light Assault Rifle [Rating: 11] Favorites ----------- Power Ion Engine Engine Ion Engine Power Core Light Nuclear Core Propulsion Improved Treads Treads Improved Treads Leg Aluminum Leg Utility Heat Sink Device Heat Sink Protection Light Armor Plating Weapon Assault Rifle Ballistic Gun Assault Rifle Launcher Grenade Launcher Build | -11 -10 -9 ------- Run | Yrd Mat Mat Slots Evolved 2 | . . 2 Power . | . . . Propulsion . | . . . Utility . | . . . Weapon 2 | . . 2 Parts Attached 22 | 6 12 4 Power 5 | 1 4 . Engine 4 | 1 3 . Core 1 | . 1 . Reactor . | . . . Propulsion 6 | 2 4 . Treads 4 | . 4 . Leg 2 | 2 . . Wheel . | . . . Hover . | . . . Flight . | . . . Utility 2 | 1 1 . Device 1 | 1 . . Storage . | . . . Processor . | . . . Hackware . | . . . Protection 1 | . 1 . Artifact . | . . . Weapon 9 | 2 3 4 Energy Gun . | . . . Energy Cannon . | . . . Ballistic Gun 7 | 2 1 4 Ballistic Cannon . | . . . Launcher 2 | . 2 . Special Weapon . | . . . Impact Weapon . | . . . Slashing Weapon . | . . . Piercing Weapon . | . . . Special Melee Weapon . | . . . Unidentified Prototypes 1 | . 1 . Parts Lost 2 | . . 2 Power . | . . . Propulsion . | . . . Utility 1 | . . 1 Weapon 1 | . . 1 Highest Loss Streak 1 | . . 1 To Critical Strikes . | . . . Average Slot Usage (%) 92 | . 93 89 Engine 9 | . 8 11 Core 3 | . 5 . Treads 13 | . 11 22 Leg 12 | . 16 . Device 13 | . 14 11 Protection 7 | . 8 4 Ballistic Gun 21 | . 15 39 Launcher 10 | . 12 2 Naked Turns . | . . . Heaviest Build 17 | 8 17 17 Greatest Support 46 | 20 46 46 Greatest Overweight (x) 1 | . 1 . Average Overweight (x) . | . . . Largest Inventory Capacity 5 | 5 5 5 Average Capacity 5 | 5 5 5 Most Carried 5 | 3 5 3 Average Carried 3 | . 4 2 Final Capacity 5 | 5 5 5 Final Carried 4 | 2 4 3 Class Distribution -------------------- 76% | Mutant 10% | Scavenger-Gunner 10% | Tank Dominant Class ---------------- Mutant | -10/Materials Scavenger-Gunner | -9/Materials Resources | -11 -10 -9 ----------- Run | Yrd Mat Mat Matter Collected 524 | 278 89 157 Remotely . | . . . Salvage Created 390 | 50 178 162 Parts 31 | 2 18 11 Haulers Intercepted . | . . . Recyclers Shooed 1 | . . 1 Parts Field Recycled . | . . . Retrieved Matter . | . . . Parts Self-Destructed . | . . . Prevented . | . . . Kills | -11 -10 -9 ------- Run | Yrd Mat Mat Combat Hostiles Destroyed 13 | 1 7 5 Guns 7 | 1 3 3 AOE 6 | . 4 2 Classes Destroyed 5 | 1 2 2 Builder 2 | . 1 1 Watcher 1 | . . 1 Swarmer 6 | . 3 3 Grunt 5 | 1 4 . Sentry 2 | . . 2 Best Kill Streak 4 | 1 3 4 Combat Bots Only 3 | 1 3 3 Max Kills in Single Turn 2 | 1 2 2 Gunslinging . | . . . Exploded 2 | . 1 2 Melee . | . . . Uniques/NPCs Destroyed . | . . . Combat | -11 -10 -9 -------- Run | Yrd Mat Mat Hostile Shots Fired 84 | 4 19 61 Missed 26 | 2 5 19 Damage Taken 735 | 23 165 547 Core 65 | . 17 48 Absorbed by Shields . | . . . Core Remaining (%) 96 | 100 93 . Volleys Fired 38 | 3 13 22 Largest 4 | 2 2 4 Hottest 90 | 40 50 90 Shots Fired 101 | 6 23 72 Gun 88 | 6 13 69 Cannon . | . . . Launcher 13 | . 10 3 Special . | . . . Kinetic 88 | 6 13 69 Thermal . | . . . Explosive 13 | . 10 3 Electromagnetic . | . . . Robot Hit Streak 4 | 4 3 4 Robot Miss Streak 6 | 2 3 6 Penetration Max . | . . . Secondary Targets 1 | . . 1 Max Gunslinging Chain 1 | . . 1 Shots Hit Robots 44 | 4 10 30 Core Hits 27 | 2 11 14 Critical Kills 1 | . . 1 Critical Parts Destroyed . | . . . Critical Strikes 1 | . . 1 Destroy 1 | . . 1 Melee Attacks . | . . . Impact . | . . . Slashing . | . . . Piercing . | . . . Sneak Attacks . | . . . Combat Hostiles . | . . . Follow-up Attacks . | . . . Damage Inflicted 996 | 56 392 548 Guns 476 | 56 65 355 Cannons . | . . . Explosions 520 | . 327 193 Melee . | . . . Ramming . | . . . Kinetic 476 | 56 65 355 Thermal . | . . . Explosive 520 | . 327 193 Electromagnetic . | . . . Impact . | . . . Slashing . | . . . Piercing . | . . . Highest Corruption . | . . . Average Corruption . | . . . Corruption Purged . | . . . Corruption Blocked . | . . . Overload Shots . | . . . Overflow Damage 16 | . 12 4 Projectiles . | . . . Explosions 16 | . 12 4 Melee . | . . . Knockbacks . | . . . Impact . | . . . Kinetic . | . . . Secondary . | . . . Self-Inflicted Damage 40 | . 40 . Shots 1 | . 1 . Rammed . | . . . Targets Rammed . | . . . Kicked . | . . . Crushed . | . . . Highest Temperature 17 | . . 17 Average Temperature 9 | . . 9 Received Heat Transfer 237 | 12 36 189 Siege Activations . | . . . Robots Corrupted . | . . . Combat Hostiles . | . . . Parts Fried . | . . . Impact Corruptions . | . . . Robots Melted . | . . . Combat Hostiles . | . . . Parts Melted . | . . . Heat Transferred . | . . . Parts Sabotaged . | . . . Parts Stolen . | . . . Parts Stripped . | . . . Power Chain Reactions . | . . . Alert | -11 -10 -9 ------- Run | Yrd Mat Mat Peak Influence 299 | 20 299 248 Initial 41 | . 13 41 Average 121 | 3 113 199 Maximum Alert Level 1 | . 1 1 Low Security (%) 77 | 100 88 33 Level 1 22 | . 11 66 Level 2 . | . . . Level 3 . | . . . Level 4 . | . . . Level 5 . | . . . High Security . | . . . Max Security . | . . . Squads Dispatched 1 | . 1 . Investigation . | . . . Extermination . | . . . Reinforcement 1 | . 1 . Assault . | . . . Garrison . | . . . Intercept . | . . . Searches Triggered . | . . . Construction Impeded . | . . . Haulers Reinforced . | . . . Active Scanning Responses . | . . . Cargo Convoy Interrupts . | . . . Stealth | -11 -10 -9 --------- Run | Yrd Mat Mat Distress Signals 2 | . 1 1 Communications Jammed . | . . . Distress Signals . | . . . Times Spotted 22 | 1 11 10 Peak Tracking Total 6 | 1 3 6 Tactical Retreats 2 | . 1 1 Traps | -11 -10 -9 ------- Run | Yrd Mat Mat Traps Triggered 1 | . 1 . Indirectly . | . . . Trap Hack Attempts . | . . . Triggered . | . . . Disarmed . | . . . Reprogrammed . | . . . Reused . | . . . Traps Extracted . | . . . Installed . | . . . Triggered . | . . . Machines | -11 -10 -9 ---------- Run | Yrd Mat Mat Machines Disabled 2 | . 1 1 Max in Single Turn 1 | . 1 1 Machines Repaired . | . . . Machines Dismantled . | . . . Machines Sabotaged . | . . . Overloaded Fab Kills . | . . . Hacking | -11 -10 -9 --------- Run | Yrd Mat Mat Machines Accessed 3 | . 3 . Terminals 3 | . 3 . Fabricators . | . . . Repair Stations . | . . . Recycling Units . | . . . Scanalyzers . | . . . Garrison Access . | . . . Total Hacks 5 | . 5 . Successful 3 | . 3 . Failed 2 | . 2 . Catastrophic 1 | . 1 . Database Lockouts . | . . . Manual . | . . . Terminals 5 | . 5 . Fabricators . | . . . Repair Stations . | . . . Recycling Units . | . . . Scanalyzers . | . . . Garrison Access . | . . . Terminal Hacks 3 | . 3 . Record 2 | . 2 . Dispatch Records 1 | . 1 . Fabricator Hacks . | . . . Repair Station Hacks . | . . . Recycling Unit Hacks . | . . . Scanalyzer . | . . . Garrison Access Hacks . | . . . Unauthorized Hacks . | . . . Terminals . | . . . Fabricators . | . . . Repair Stations . | . . . Recycling Units . | . . . Scanalyzers . | . . . Garrison Access . | . . . Data Cores Recovered . | . . . Used . | . . . Hacking Detections 2 | . 2 . Full Trace Events . | . . . Feedback Events . | . . . Feedback Blocked . | . . . Robot Schematics Acquired . | . . . Robots Built . | . . . Authchips . | . . . Time . | . . . Total Robot Build Rating . | . . . Part Schematics Acquired . | . . . Parts Built . | . . . Authchips . | . . . Time . | . . . Total Part Build Rating . | . . . Parts Repaired . | . . . Time . | . . . Parts Recycled . | . . . Recycled Matter . | . . . Retrieved Matter . | . . . Retrieved Components . | . . . Parts Scanalyzed . | . . . Part Schematics Acquired . | . . . Parts Damaged . | . . . Bothacking | -11 -10 -9 ------------ Run | Yrd Mat Mat Used RIF Installer . | . . . Robots Hacked . | . . . Non-combat . | . . . Combat . | . . . Robot Hacks Applied . | . . . Relay Couplers Released . | . . . Fabnet Peak Effective % . | . . . Robots Rewired . | . . . Allies Hacked . | . . . Hacks Repelled . | . . . Allies | -11 -10 -9 -------- Run | Yrd Mat Mat Total Allies . | . . . Largest Group . | . . . Highest-Rated Group . | . . . Highest-Rated Ally . | . . . Total Orders . | . . . Ally Attacks . | . . . Total Damage . | . . . Kills . | . . . Allies Corrupted . | . . . Allies Melted . | . . . Intel | -11 -10 -9 ------- Run | Yrd Mat Mat Robot Analysis Total . | . . . Derelict Logs Recovered . | . . . Drone Launches . | . . . Drone Recoveries . | . . . Exploration | -11 -10 -9 ------------- Run | Yrd Mat Mat Turns Passed 902 | 97 602 203 Spaces Moved 525 | 72 374 79 Core 17 | 17 . . Treads 217 | . 138 79 Legs 291 | 55 236 . Wheels . | . . . Hover . | . . . Flight . | . . . Fastest Speed 50 | 50 120 160 Average Speed 134 | 103 135 160 Slowest Speed 190 | 120 190 160 Overloaded Moves . | . . . Propulsion Burnouts . | . . . Robots Hopped . | . . . Cave-ins Triggered . | . . . Exploration Rate (%) 21 | 7 45 13 Regions Visited 2 Branch Regions . Pre-discovered Areas . | . . . Known Exits Taken . | . . . Unknown Exits Taken 2 | 1 1 . Scrap Searched . | . . . Spaces Dug . | . . . Terrain Destroyed 92 | . 64 28 Melee . | . . . Projectile . | . . . AOE 92 | . 64 28 Terrain Rammed . | . . . Walls Destroyed . | . . . Machines Disabled . | . . . Actions | -11 -10 -9 --------- Run | Yrd Mat Mat Total 644 | 88 447 109 Wait 35 | . 35 . Move 523 | 71 373 79 Hop . | . . . Pick Up 19 | 8 8 3 Fast Attach 3 | . 3 . Attach 13 | 6 4 3 Detach . | . . . Swap 6 | . 5 1 Drop 7 | . 6 1 Fire 38 | 3 13 22 Melee . | . . . Ram . | . . . Kick . | . . . Crush . | . . . Escape Stasis . | . . . Rewire . | . . . Trap . | . . . Miscellaneous . | . . . Route ------- -11/Scrapyard -10/Materials (discovered 2 exits: [*Mat] / [*Min]) -9/Materials History --------- Turn | Location | Event 2 | -11/Scrapyard | Met Revision 17 69 | -11/Scrapyard | Discovered new exit (range 8) 98 | -11/Scrapyard | Entered Materials 303 | -10/Materials | Build established: Mutant 375 | -10/Materials | Discovered new exit (range 7) 607 | -10/Materials | Discovered new exit (range 16) 700 | -10/Materials | Entered another Materials area 700 | -9/Materials | Evolved 2 slots: Weapon x2 903 | -9/Materials | Self-destructed Last Messages --------------- Acquired Lgt. Assault Rifle. U-05 Engineer lays Concrete. U-05 Engineer builds a Wall. U-05 Engineer builds a Door. Acquired 19 matter. U-05 Engineer lays Concrete. Acquired Hvy. Assault Rifle. Dropped Assault Rifle. Acquired 49 matter. Acquired 7 matter. R-06 Scavenger collects Lgt. Ion Engine. R-06 Scavenger collects Flight Unit. R-06 Scavenger collects Heat Sink. R-06 Scavenger collects Flight Unit. R-06 Scavenger collects Lgt. Ion Engine. R-06 Scavenger collects Wheel. R-06 Scavenger collects Assault Rifle. Acquired Imp. Ion Engine. U-05 Engineer destroyed. R-06 Scavenger collects Wheel. Map ----- +----------------------------------------------------+ | ?????????????????????????????????????????????????? | | ?????????????????????????????????????????????????? | | ?????????????????????????????????????????????????? | | ?????????????????????????????????????????????????? | | ?????????????????????????????????????????????????? | | ?????????????????????????????????????????????????? | | ?????????????????????????????????????????????????? | | ?????????????????????????????????????????????????? | | ?????????????????????????????????????????????????? | | ?????????????????????????????????????????????????? | | ??????????????????????? Y ???????????????????????? | | ?????????????????????? ???????????????????????? | | ?????????????????????? ???????????????????????? | | ??????????????????????# ???????????????????????? | | ??????????????????????# ???????????????????????? | | ??????????????????????# ???????????????????????? | | ??????????????????????+ ???????????????????????? | | ??????????????????????# #?????????????? ???????? | | ??????????????????????# r #?????????????? ???????? | | ??????????????????????# ! #?????????????? ???????? | | ??????????????????????# %r#?????????????? ???????? | | ??????????????????????# #?????????????? ???????? | | ??????????????????????# #?????????????# #??????? | | ??????????????????????# ###########???# #??????? | | ??????????????????????# r # #???# #??????? | | ???????????############ @# #???# #??????? | | ?????????? # #???# ######?? | | ?????????? # #???# ## ## | | ?????????? # #??## ######## | | ?????????? # #??# | | ?????????? + #### | | ?????????? # + | | ???????????######## ###############+######## | | ??????????????????# #?????????# "" = # | | ??????????????????# #?????????# """ ## | | ?????????????????# +?????????# """ # | | ?????????????????# #?????????# ## | | ?????????????????+ #?????????# ||! ## | | ?????????????????##+######??????????# ||! ## | | ????????????????????????????????????# |!/ #### | | ????????????????????????????????????# #??? | | ????????????????????????????????????###########??? | | ?????????????????????????????????????????????????? | | ?????????????????????????????????????????????????? | | ?????????????????????????????????????????????????? | | | | | | | | | | | +----------------------------------------------------+ Best States ------------- Heat Dissipation 38 Energy Generation 14 Energy Capacity 280 Matter Stores 300 Matter Capacity 300 Sight Range 16 Terrain Scan Density 10 Armor Coverage 150 Evasion (%) 55 Recoil Reduction 2 Item Schematics ----------------- None Robot Schematics ------------------ None Fabricated ------------ Nothing Alien Tech Used ----------------- None Achievements -------------- Let's See Who's Tougher Risk Taker Challenges ------------ None Game ------ Seed TrackerHypercooledCanceller Manual? 0 Play Time 00:17:51 Cumulative 0.9 hours Start 2024.04.18 @ 22:04:35 End 2024.04.18 @ 22:22:30 Sessions 1 Manual Loads 0 Difficulty Rogue Special Mode None Game No. 2 Rogue 2 Adventurer 0 Explorer 0 Win Type - Total 0 Types 0/0/0/0/0/0/0/0/0 Lore% 0 Gallery% 2 Achievement% 1 Wizard Run 0 Options --------- Layout 1 ASCII 0 Keyboard 0 Movement Mouse Keybinds 0 Fullscreen 1 Font 24/Smallcaps Map View 50x35 Zoom Use 0% Tactical HUD 0 Map Filters NONE Filters NONE Steam 0 RUN: 5c029eb6-6c73-4fda-9105-9d857325053c